Cogmind - Beta 12 @@@ ROGUE MODE // 2023.03.13 @ 22:21:42 Player: 3.14 Result: Self-destructed Performance ------------- Evolutions (6) 3000 Regions Visited (16) 3200 Robots Destroyed (153) 765 Value Destroyed (4065) 4065 Prototype IDs (27) 540 Alien Tech Used (1) 200 Bonus (902) 902 TOTAL SCORE: 12672 Bonus ------- High Alert Combat Kills 464 Follower Combat Kills 138 Met Zhirov 300 Cogmind --------- Core Integrity 1150/1150 Matter 250/300 Energy 150/150 System Corruption 0% Temperature Cool (0) Movement Flying (31) Location -4/Factory Parts ------- > --- POWER (1) -------- Light Angular Momentum Engine > --- PROPULSION (5) --- Biomechanical Wings Biomechanical Wings Biomechanical Wings Biomechanical Wings > --- UTILITY (11) ----- Long-range Sensor Array Advanced Signal Interpreter Improved Transmission Jammer Experimental Propulsion Shielding Experimental Utility Shielding Improved Medium Armor Plating Advanced Hacking Suite Advanced Hacking Suite Advanced Hacking Suite Advanced Hacking Suite Advanced System Shield > --- WEAPON (2) ------- Advanced Datajack Kinetic Spear > --- INVENTORY (5) ---- Light Nuclear Core Micro Fission Core Authchip [Propulsion] Transdimensional Reconstructor Neutron Missile Launcher Peak State ------------ > --- POWER ------------ Light Angular Momentum Engine > --- PROPULSION ------- Biomechanical Wings Biomechanical Wings Biomechanical Wings Biomechanical Wings Field Propulsion Drive > --- UTILITY ---------- Long-range Sensor Array Advanced Signal Interpreter Improved Transmission Jammer Experimental Propulsion Shielding Experimental Utility Shielding Improved Medium Armor Plating Advanced Hacking Suite Advanced Hacking Suite Advanced Hacking Suite Advanced Hacking Suite Advanced System Shield > --- WEAPON ----------- Advanced Datajack Kinetic Spear > --- INVENTORY -------- Light Nuclear Core Micro Fission Core Authchip [Propulsion] Transdimensional Reconstructor [Rating: 115] Favorites ----------- Power Improved Ion Engine Engine Improved Ion Engine Power Core Micro Fission Core Propulsion Improved Flight Unit Treads Light Treads Leg Aluminum Leg Flight Unit Improved Flight Unit Utility Advanced Hacking Suite Device Shield Generator Storage High-capacity Storage Unit Processor Improved Signal Interpreter Hackware Advanced Hacking Suite Protection Experimental Propulsion Shielding Weapon Improved Assault Rifle Energy Gun Small Laser Energy Cannon Light EM Pulse Cannon Ballistic Gun Improved Assault Rifle Launcher Long-range Missile Launcher Special Weapon Plasma Cutter Slashing Weapon Chainsword Piercing Weapon Kinetic Spear Special Melee Weapon Improved Datajack Build | -11 -10 -9 -9 -8 -7 -7 -7 -6 -5 -5 -5 -5 -5 -5 -4 -4 ------- Run | Jun Mat Mat Sto Mat Fac Was Fac Fac Fac Was Fac Upp Upp Zhi Pro Fac Slots Evolved 12 | . . 2 . 2 2 . . 2 2 . . . . . . 2 Power . | . . . . . . . . . . . . . . . . . Propulsion 3 | . . 1 . 1 . . . . 1 . . . . . . . Utility 9 | . . 1 . 1 2 . . 2 1 . . . . . . 2 Weapon . | . . . . . . . . . . . . . . . . . Parts Attached 195 | . 20 36 29 13 18 2 22 9 9 . 22 . . 5 1 9 Power 13 | . 3 1 2 . 1 . 3 . 1 . 1 . . . . 1 Engine 8 | . 3 1 2 . . . 1 . . . . . . . . 1 Core 5 | . . . . . 1 . 2 . 1 . 1 . . . . . Reactor . | . . . . . . . . . . . . . . . . . Propulsion 40 | . 2 11 8 6 5 . . 1 1 . 4 . . . . 2 Treads 23 | . . 9 8 6 . . . . . . . . . . . . Leg 3 | . 2 1 . . . . . . . . . . . . . . Wheel . | . . . . . . . . . . . . . . . . . Hover . | . . . . . . . . . . . . . . . . . Flight 14 | . . 1 . . 5 . . 1 1 . 4 . . . . 2 Utility 80 | . 3 8 4 3 10 2 16 5 7 . 14 . . 5 . 3 Device 31 | . 1 4 2 1 2 2 7 1 1 . 7 . . 2 . 1 Storage 3 | . 1 1 . . . . . . . . . . . 1 . . Processor 4 | . 1 . . 1 1 . . . 1 . . . . . . . Hackware 21 | . . . . . 4 . 9 1 3 . 4 . . . . . Protection 21 | . . 3 2 1 3 . . 3 2 . 3 . . 2 . 2 Artifact . | . . . . . . . . . . . . . . . . . Weapon 62 | . 12 16 15 4 2 . 3 3 . . 3 . . . 1 3 Energy Gun 6 | . 5 1 . . . . . . . . . . . . . . Energy Cannon 1 | . 1 . . . . . . . . . . . . . . . Ballistic Gun 27 | . 4 10 10 3 . . . . . . . . . . . . Ballistic Cannon . | . . . . . . . . . . . . . . . . . Launcher 9 | . . 1 3 1 . . 1 1 . . 1 . . . . 1 Special Weapon 4 | . 2 2 . . . . . . . . . . . . . . Impact Weapon . | . . . . . . . . . . . . . . . . . Slashing Weapon 9 | . . 2 2 . 1 . 2 1 . . 1 . . . . . Piercing Weapon 1 | . . . . . . . . . . . 1 . . . . . Special Melee Weapon 5 | . . . . . 1 . . 1 . . . . . . 1 2 Unidentified Prototypes 9 | . 1 1 . 1 . . . 1 . . 1 . . 3 . 1 Parts Lost 6 | . . . 2 . . . 2 . . . 2 . . . . . Power 2 | . . . 1 . . . 1 . . . . . . . . . Propulsion . | . . . . . . . . . . . . . . . . . Utility 1 | . . . 1 . . . . . . . . . . . . . Weapon 3 | . . . . . . . 1 . . . 2 . . . . . Highest Loss Streak 2 | . . . 1 . . . 2 . . . 1 . . . . . To Critical Strikes . | . . . . . . . . . . . . . . . . . Average Slot Usage (%) 97 | . 98 99 99 98 98 100 94 99 98 100 95 88 88 88 92 92 Engine 5 | . 14 11 10 9 . . . . . . . . . . . 4 Core 2 | . . . . . 6 7 6 6 5 5 5 5 5 5 5 . Treads 13 | . . 31 33 35 . . . . . . . . . . . . Leg 3 | . 28 1 . . . . . . . . . . . . . . Flight 13 | . . . . . 29 30 30 26 29 29 28 23 23 23 23 20 Device 7 | . 2 10 11 10 8 7 6 5 4 5 5 5 5 5 5 10 Storage 5 | . 14 11 11 9 . . . . . . . . . . . . Processor 4 | . 9 . . 7 7 7 7 6 5 5 5 5 5 5 5 5 Hackware 13 | . . . . . 22 30 30 26 25 29 29 29 29 29 29 26 Protection 8 | . . 11 10 8 4 . . 13 13 11 9 11 11 11 11 14 Energy Gun 1 | . 12 . . . . . . . . . . . . . . . Ballistic Gun 9 | . 14 20 19 18 . . . . . . . . . . . . Slashing Weapon 2 | . . . 1 . 6 7 7 5 5 5 4 . . . . . Special Melee Weapon 1 | . . . . . 6 7 2 5 5 5 2 . . . 4 5 Naked Turns . | . . . . . . . . . . . . . . . . . Heaviest Build 63 | 10 34 62 63 60 58 10 10 19 20 13 20 11 11 11 12 24 Greatest Support 88 | 20 20 60 63 88 88 20 20 21 26 26 28 24 24 24 24 24 Greatest Overweight (x) 1 | . 1 1 1 . . . . . . . . . . . . . Average Overweight (x) . | . . . . . . . . . . . . . . . . . Largest Inventory Capacity 20 | . 15 20 20 20 20 5 5 5 5 5 5 5 5 5 5 5 Average Capacity 11 | . 12 17 20 20 5 5 5 5 5 5 5 5 5 5 5 5 Most Carried 20 | . 15 20 20 20 20 5 5 5 4 4 5 5 5 5 5 5 Average Carried 10 | . 11 15 19 19 5 4 3 4 3 4 4 5 5 4 5 4 Final Capacity 20 | 8 15 20 20 20 5 5 5 5 5 5 5 5 5 5 5 5 Final Carried 20 | 6 15 20 20 20 5 5 5 4 4 4 5 5 5 5 5 5 Class Distribution -------------------- 45% | Mutant 24% | Wizard-Sprinter 18% | Hacker-Sprinter 5% | Scavenger-Sprinter 3% | Commander-Mutant Dominant Class ---------------- Mutant | -10/Materials Mutant | -9/Materials Mutant | -9/Storage Mutant | -8/Materials Scavenger-Sprinter | -7/Factory Hacker-Sprinter | -7/Waste Hacker-Sprinter | -7/Factory Hacker-Sprinter | -6/Factory Wizard-Sprinter | -5/Factory Wizard-Sprinter | -5/Waste Wizard-Sprinter | -5/Factory Wizard-Sprinter | -5/Upper Caves Wizard-Sprinter | -5/Upper Caves Wizard-Sprinter | -5/Zhirov Wizard-Sprinter | -4/Proximity Caves Wizard-Sprinter | -4/Factory Resources | -11 -10 -9 -9 -8 -7 -7 -7 -6 -5 -5 -5 -5 -5 -5 -4 -4 ----------- Run | Jun Mat Mat Sto Mat Fac Was Fac Fac Fac Was Fac Upp Upp Zhi Pro Fac Matter Collected 4104 | 190 324 1042 848 686 109 . 321 40 190 . 200 15 6 60 33 40 Remotely . | . . . . . . . . . . . . . . . . . Salvage Created 5533 | . 439 1335 1310 1084 109 . 326 38 254 . 295 . 24 124 130 65 Parts 343 | . 26 89 81 71 2 . 24 7 17 . 15 . . . 6 5 Haulers Intercepted 10 | . 1 2 4 2 . . . . 1 . . . . . . . Recyclers Shooed 6 | . 1 3 1 . . . 1 . . . . . . . . . Parts Field Recycled . | . . . . . . . . . . . . . . . . . Retrieved Matter . | . . . . . . . . . . . . . . . . . Parts Self-Destructed 5 | . . . . . . . . . . . . . . . 5 . Prevented 9 | . . . . . . . . . . . . 3 . . 6 . Kills | -11 -10 -9 -9 -8 -7 -7 -7 -6 -5 -5 -5 -5 -5 -5 -4 -4 ------- Run | Jun Mat Mat Sto Mat Fac Was Fac Fac Fac Was Fac Upp Upp Zhi Pro Fac Combat Hostiles Destroyed 99 | . 11 24 34 19 . . 3 4 . . 2 . . . 2 . Melee 3 | . . . . . . . . . . . 1 . . . 2 . Guns 68 | . 11 22 16 19 . . . . . . . . . . . . AOE 27 | . . 2 18 . . . 3 4 . . . . . . . . Classes Destroyed 18 | . 6 5 2 1 1 . . . . . 1 . . . 2 . Worker 7 | . 1 . 1 3 . . 1 . 1 . . . . . . . Builder 4 | . 1 . 1 . . . 1 1 . . . . . . . . Tunneler 1 | . . 1 . . . . . . . . . . . . . . Hauler 10 | . 1 2 4 2 . . . . 1 . . . . . . . Recycler 10 | . . 4 . 2 1 . 2 . . . 1 . . . . . Minesweeper 1 | . . . . . . . . . . . . . . . 1 . Mechanic 1 | . . . . . 1 . . . . . . . . . . . Operator 7 | . 1 3 . 1 . . . . 1 . . . . . . 1 Drone 2 | . . . . . . . . . . . . . . . 2 . Watcher 13 | . . 1 1 2 . . 3 . 4 . 1 . . . . 1 Swarmer 27 | . 6 4 4 6 . . 3 4 . . . . . . . . Grunt 44 | . 5 12 20 7 . . . . . . . . . . . . Brawler 3 | . . . 3 . . . . . . . . . . . . . Duelist 3 | . . 3 . . . . . . . . . . . . . . Protector 2 | . . . 2 . . . . . . . . . . . . . Sentry 14 | . . 5 5 4 . . . . . . . . . . . . Hunter 3 | . . . . 2 . . . . . . 1 . . . . . Programmer 1 | . . . . . . . . . . . 1 . . . . . Decomposer 1 | . . . . . . . . . . . . . 1 . . . Packrat 1 | . . . . . . . . . . . . . . . 1 . Best Kill Streak 10 | . 5 6 10 6 1 . 5 4 2 . 2 . . . 1 2 Combat Bots Only 9 | . 3 6 9 4 . . 3 4 . . 2 . . . 1 . Max Kills in Single Turn 3 | . 2 1 3 2 1 . 2 2 1 . 1 . 1 . 1 1 Gunslinging 1 | . 1 . 1 1 . . . . . . . . . . . . Exploded 3 | . . 1 3 . . . 2 2 . . . . . . . . Melee 1 | . . . . . . . . . . . 1 . . . 1 . Uniques/NPCs Destroyed . | . . . . . . . . . . . . . . . . . Combat | -11 -10 -9 -9 -8 -7 -7 -7 -6 -5 -5 -5 -5 -5 -5 -4 -4 -------- Run | Jun Mat Mat Sto Mat Fac Was Fac Fac Fac Was Fac Upp Upp Zhi Pro Fac Damage Taken 3908 | . 377 635 740 848 . . 269 188 96 . 621 . 29 . 68 37 Core 767 | . 108 84 36 144 . . 116 46 40 . 193 . . . . . Absorbed by Shields 836 | . . 238 280 318 . . . . . . . . . . . . Redirected to Shielding 250 | . . . . . . . . 13 50 . 117 . 10 . 41 19 Regen/Repaired (Parts) 527 | . . 80 102 70 . . 24 . 84 . 109 . . . . 58 Core Remaining (%) 78 | 100 56 . 70 73 . . 83 94 . . . . . . 76 . Volleys Fired 309 | . 45 98 77 84 . . 2 3 . . . . . . . . Largest 2 | . 2 2 2 2 . . 1 1 . . . . . . . . Hottest 112 | . 112 46 46 46 . . 30 43 . . . . . . . . Shots Fired 574 | . 81 183 137 168 . . 2 3 . . . . . . . . Gun 535 | . 75 172 120 168 . . . . . . . . . . . . Cannon . | . . . . . . . . . . . . . . . . . Launcher 26 | . . 4 17 . . . 2 3 . . . . . . . . Special 13 | . 6 7 . . . . . . . . . . . . . . Kinetic 491 | . 31 172 120 168 . . . . . . . . . . . . Thermal 57 | . 50 7 . . . . . . . . . . . . . . Explosive 26 | . . 4 17 . . . 2 3 . . . . . . . . Electromagnetic . | . . . . . . . . . . . . . . . . . Robot Hit Streak 18 | . 8 14 11 18 . . . 2 . . . . . . . . Robot Miss Streak 4 | . 4 4 3 2 . . . . . . . . . . . . Penetration Max . | . . . . . . . . . . . . . . . . . Secondary Targets 7 | . 2 1 2 2 . . . . . . . . . . . . Max Gunslinging Chain 1 | . 1 1 1 1 . . . . . . . . . . . . Shots Hit Robots 455 | . 51 128 92 124 4 . 13 3 12 . 12 . 1 5 6 4 Core Hits 225 | . 23 54 64 47 1 . 10 8 6 . 5 . . 1 4 2 Critical Kills 2 | . . . 1 1 . . . . . . . . . . . . Critical Parts Destroyed 1 | . . . . 1 . . . . . . . . . . . . Critical Strikes 10 | . 1 . 1 2 . . . . . . 3 . 1 . 1 1 Burn 1 | . 1 . . . . . . . . . . . . . . . Destroy 3 | . . . 1 2 . . . . . . . . . . . . Sever 3 | . . . . . . . . . . . 3 . . . . . Impale 3 | . . . . . . . . . . . . . 1 . 1 1 Melee Attacks 240 | . . 5 7 . 13 . 51 37 42 . 40 . 10 5 15 15 Impact . | . . . . . . . . . . . . . . . . . Slashing 188 | . . 5 7 . 11 . 51 37 41 . 36 . . . . . Piercing 48 | . . . . . . . . . . . 4 . 10 5 15 14 Sneak Attacks 21 | . . . . . 4 . 7 1 4 . 1 . 1 . 2 1 Combat Hostiles . | . . . . . . . . . . . . . . . . . Follow-up Attacks . | . . . . . . . . . . . . . . . . . Damage Inflicted 11774 | . 710 2151 3238 2118 145 . 905 394 589 . 521 . 89 363 349 202 Guns 5764 | . 645 1871 1411 1837 . . . . . . . . . . . . Cannons . | . . . . . . . . . . . . . . . . . Explosions 2597 | . . 204 1761 245 . . 119 268 . . . . . . . . Melee 3170 | . . . . . 145 . 786 126 589 . 521 . 89 363 349 202 Ramming 166 | . 33 31 66 36 . . . . . . . . . . . . Kinetic 5381 | . 262 1871 1411 1837 . . . . . . . . . . . . Thermal 460 | . 415 45 . . . . . . . . . . . . . . Explosive 2597 | . . 204 1761 245 . . 119 268 . . . . . . . . Electromagnetic . | . . . . . . . . . . . . . . . . . Impact . | . . . . . . . . . . . . . . . . . Slashing 2091 | . . . . . 145 . 786 126 589 . 445 . . . . . Piercing 1079 | . . . . . . . . . . . 76 . 89 363 349 202 Highest Corruption 10 | . 1 . 1 . 1 . . 1 . 10 10 3 3 3 3 . Average Corruption 1 | . 1 . 1 . 1 . . 1 . 10 2 3 3 3 3 . Corruption Purged 11 | . . . . . 1 . . . . . 10 . . . . . Corruption Blocked . | . . . . . . . . . . . . . . . . . Effects 51 | . 17 . 3 . 1 . . 3 . 1 7 2 8 1 8 . Message Errors 16 | . 6 . . . 1 . . 1 . . 5 1 2 . . . Matter Fused 11 | . 5 . 1 . . . . 1 . . . . 1 . 3 . Heat Flow Errors 6 | . 1 . . . . . . . . . 1 . 2 . 2 . Energy Discharges 5 | . 1 . 1 . . . . 1 . . . . 1 . 1 . Parts Rejected 1 | . 1 . . . . . . . . . . . . . . . Parts Fused 1 | . . . . . . . . . . . . 1 . . . . Data Loss (minor) 3 | . 1 . . . . . . . . . . . 1 . 1 . Data Loss (major) 7 | . 1 . 1 . . . . . . 1 1 . 1 1 1 . Misfires 1 | . 1 . . . . . . . . . . . . . . . Overload Shots . | . . . . . . . . . . . . . . . . . Overflow Damage 749 | . . . 36 25 42 . 224 80 75 . 5 . 158 65 36 3 Projectiles . | . . . . . . . . . . . . . . . . . Explosions 96 | . . . 36 25 . . . 35 . . . . . . . . Melee 653 | . . . . . 42 . 224 45 75 . 5 . 158 65 36 3 Knockbacks 1 | . 1 . . . . . . . . . . . . . . . Impact 1 | . 1 . . . . . . . . . . . . . . . Kinetic . | . . . . . . . . . . . . . . . . . Secondary . | . . . . . . . . . . . . . . . . . Self-Inflicted Damage 139 | . . . 110 . . . 29 . . . . . . . . . Shots 3 | . . . 2 . . . 1 . . . . . . . . . Rammed 14 | . . 5 6 3 . . . . . . . . . . . . Targets Rammed 26 | . 10 6 6 4 . . . . . . . . . . . . Kicked 10 | . 10 . . . . . . . . . . . . . . . Crushed 2 | . . 1 . 1 . . . . . . . . . . . . Highest Temperature 280 | . 168 29 29 11 . . . 5 1 . 280 . 248 . 223 217 Average Temperature 33 | . 56 9 9 6 . . . 5 1 . 152 . 128 . 99 115 Received Heat Transfer 855 | . 90 190 240 215 . . 9 45 27 . 27 . . . . 12 Siege Activations . | . . . . . . . . . . . . . . . . . Robots Corrupted . | . . . . . . . . . . . . . . . . . Combat Hostiles . | . . . . . . . . . . . . . . . . . Parts Fried . | . . . . . . . . . . . . . . . . . Impact Corruptions . | . . . . . . . . . . . . . . . . . Robots Melted . | . . . . . . . . . . . . . . . . . Combat Hostiles . | . . . . . . . . . . . . . . . . . Parts Melted 4 | . 3 . . . . . . . . . 1 . . . . . Heat Transferred 1190 | . 1042 148 . . . . . . . . . . . . . . Parts Sabotaged . | . . . . . . . . . . . . . . . . . Parts Stolen . | . . . . . . . . . . . . . . . . . Parts Stripped . | . . . . . . . . . . . . . . . . . Power Chain Reactions . | . . . . . . . . . . . . . . . . . Missiles Intercepted . | . . . . . . . . . . . . . . . . . Alert | -11 -10 -9 -9 -8 -7 -7 -7 -6 -5 -5 -5 -5 -5 -5 -4 -4 ------- Run | Jun Mat Mat Sto Mat Fac Was Fac Fac Fac Was Fac Upp Upp Zhi Pro Fac Peak Influence 1023 | . 238 355 1023 619 165 47 287 293 488 154 190 . . . . 270 Initial 368 | . . 4 120 368 137 17 11 47 143 139 107 . . . . 150 Average 219 | . 65 236 529 387 89 25 122 130 236 146 110 . . . . 194 Maximum Alert Level 3 | . 1 1 3 2 . . 1 1 2 . . . . . . 1 Low Security (%) 57 | . 98 33 16 2 100 100 85 77 44 100 100 . . . . 51 Level 1 26 | . 1 66 19 39 . . 14 22 39 . . . . . . 48 Level 2 13 | . . . 40 58 . . . . 15 . . . . . . . Level 3 2 | . . . 23 . . . . . . . . . . . . . Level 4 . | . . . . . . . . . . . . . . . . . Level 5 . | . . . . . . . . . . . . . . . . . High Security . | . . . . . . . . . . . . . . . . . Max Security . | . . . . . . . . . . . . . . . . . Squads Dispatched 52 | . 1 4 7 3 3 . 6 9 6 . 10 . . . . 3 Investigation 28 | . . 2 2 . 3 . 5 5 5 . 5 . . . . 1 Extermination 9 | . . . . . . . 1 2 1 . 4 . . . . 1 Reinforcement 11 | . 1 2 2 2 . . . 2 . . 1 . . . . 1 Assault 2 | . . . 2 . . . . . . . . . . . . . Garrison 2 | . . . 1 1 . . . . . . . . . . . . Intercept . | . . . . . . . . . . . . . . . . . Searches Triggered . | . . . . . . . . . . . . . . . . . Construction Impeded 2 | . . . 1 . . . . 1 . . . . . . . . Haulers Reinforced . | . . . . . . . . . . . . . . . . . Active Scanning Responses . | . . . . . . . . . . . . . . . . . Cargo Convoy Interrupts . | . . . . . . . . . . . . . . . . . Stealth | -11 -10 -9 -9 -8 -7 -7 -7 -6 -5 -5 -5 -5 -5 -5 -4 -4 --------- Run | Jun Mat Mat Sto Mat Fac Was Fac Fac Fac Was Fac Upp Upp Zhi Pro Fac Distress Signals 17 | . 2 4 1 1 3 . 3 . 1 . 1 . . . . 1 Communications Jammed . | . . . . . . . . . . . . . . . . . Distress Signals . | . . . . . . . . . . . . . . . . . Times Spotted 319 | . 31 52 42 34 8 6 22 22 36 4 28 . 8 . 11 15 Peak Tracking Total 10 | . 4 6 6 6 3 6 4 7 10 5 6 . 4 . 5 9 Tactical Retreats 39 | . 1 1 1 1 . . 6 3 9 . 9 . 2 . 4 2 Traps | -11 -10 -9 -9 -8 -7 -7 -7 -6 -5 -5 -5 -5 -5 -5 -4 -4 ------- Run | Jun Mat Mat Sto Mat Fac Was Fac Fac Fac Was Fac Upp Upp Zhi Pro Fac Traps Triggered 15 | . 3 . 4 1 2 . 1 . 3 . 1 . . . . . Indirectly . | . . . . . . . . . . . . . . . . . Trap Hack Attempts 1 | . . . . . 1 . . . . . . . . . . . Triggered . | . . . . . . . . . . . . . . . . . Disarmed . | . . . . . . . . . . . . . . . . . Reprogrammed 1 | . . . . . 1 . . . . . . . . . . . Reused 2 | . . . . . 1 . . . . . . . . . 1 . Traps Extracted . | . . . . . . . . . . . . . . . . . Installed 1 | . . . . . . . . . . . . . . . 1 . Triggered 6 | . . . . . 1 . . . . . . 1 3 . 1 . Machines | -11 -10 -9 -9 -8 -7 -7 -7 -6 -5 -5 -5 -5 -5 -5 -4 -4 ---------- Run | Jun Mat Mat Sto Mat Fac Was Fac Fac Fac Was Fac Upp Upp Zhi Pro Fac Machines Disabled 15 | . . 2 6 2 . . 1 2 1 . 1 . . . . . Max in Single Turn 2 | . . 1 2 1 . . 1 1 1 . 1 . . . . . Garrison Access 3 | . . . 1 . . . 1 . . . 1 . . . . . Machines Repaired . | . . . . . . . . . . . . . . . . . Machines Sabotaged . | . . . . . . . . . . . . . . . . . Overloaded Fab Kills . | . . . . . . . . . . . . . . . . . Hacking | -11 -10 -9 -9 -8 -7 -7 -7 -6 -5 -5 -5 -5 -5 -5 -4 -4 --------- Run | Jun Mat Mat Sto Mat Fac Was Fac Fac Fac Was Fac Upp Upp Zhi Pro Fac Machines Accessed 101 | . 5 7 6 4 14 . 15 13 12 . 17 . . 4 . 4 Terminals 61 | . 3 5 4 2 10 . 7 10 9 . 10 . . . . 1 Fabricators 15 | . . . . . 2 . 4 3 2 . 4 . . . . . Repair Stations 8 | . . 1 1 1 . . 1 . 1 . 1 . . . . 2 Recycling Units 3 | . 2 1 . . . . . . . . . . . . . . Scanalyzers 4 | . . . . . 2 . 2 . . . . . . . . . Garrison Access 6 | . . . 1 1 . . 1 . . . 2 . . . . 1 Total Hacks 330 | . 15 25 14 10 38 . 55 35 41 . 64 . . 17 . 16 Successful 233 | . 6 11 5 5 31 . 42 18 31 . 55 . . 17 . 12 Failed 96 | . 9 14 9 5 6 . 13 17 10 . 9 . . . . 4 Catastrophic 17 | . 1 4 1 2 1 . 2 3 1 . 1 . . . . 1 Database Lockouts 1 | . . . . . 1 . . . . . . . . . . . Manual 186 | . 15 7 8 8 21 . 20 27 26 . 42 . . . . 12 Terminals 190 | . 10 18 8 5 24 . 26 28 29 . 33 . . . . 9 Fabricators 57 | . . . . . 5 . 16 7 10 . 19 . . . . . Repair Stations 26 | . . 5 3 2 . . 2 . 2 . 8 . . . . 4 Recycling Units 7 | . 5 2 . . . . . . . . . . . . . . Scanalyzers 19 | . . . . . 9 . 10 . . . . . . . . . Garrison Access 14 | . . . 3 3 . . 1 . . . 4 . . . . 3 Terminal Hacks 92 | . 2 6 2 2 9 . 14 7 14 . 16 . . 17 . 3 Record 5 | . . . . . . . . . . . . . . 5 . . Part Schematic 16 | . . . . . 2 . 3 2 5 . . . . 4 . . Robot Analysis 8 | . 2 1 . . 1 . . . . . . . . 4 . . Prototype ID Bank 6 | . . 2 . . . . . . . . . . . 4 . . Open Door 1 | . . . 1 . . . . . . . . . . . . . Branch Access Points 5 | . . 1 . . 1 . 1 . 1 . 1 . . . . . Machine Index 3 | . . . . . . . 1 1 . . . . . . . 1 Terminal Index 5 | . . . . . 1 . 1 . 1 . 1 . . . . 1 Fabricator Index 3 | . . . . . 1 . . . 1 . 1 . . . . . Scanalyzer Index 1 | . . . . . 1 . . . . . . . . . . . Alert Level 3 | . . . . . . . . 1 1 . 1 . . . . . Unreport Threat 8 | . . 1 1 2 1 . 1 . 1 . 1 . . . . . Locate Traps 5 | . . 1 . . . . 2 1 1 . . . . . . . Dispatch Records 3 | . . . . . . . . . 1 . 2 . . . . . Investigation Status 1 | . . . . . . . 1 . . . . . . . . . Recall Investigation 8 | . . . . . 1 . 3 . 1 . 3 . . . . . Recall Extermination 7 | . . . . . . . 1 1 1 . 3 . . . . 1 Recall Reinforcements 1 | . . . . . . . . . . . 1 . . . . . Zone Layout 3 | . . . . . . . . 1 . . 2 . . . . . Fabricator Hacks 37 | . . . . . 3 . 12 4 6 . 12 . . . . . Network Status 1 | . . . . . 1 . . . . . . . . . . . Load Schematic 24 | . . . . . 2 . 7 3 4 . 8 . . . . . Build 12 | . . . . . . . 5 1 2 . 4 . . . . . Repair Station Hacks 24 | . . 4 2 2 . . 2 . 2 . 8 . . . . 4 Scan Component 12 | . . 2 1 1 . . 1 . 1 . 4 . . . . 2 Repair 12 | . . 2 1 1 . . 1 . 1 . 4 . . . . 2 Recycling Unit Hacks . | . . . . . . . . . . . . . . . . . Scanalyzer 15 | . . . . . 9 . 6 . . . . . . . . . Insert Component 8 | . . . . . 5 . 3 . . . . . . . . . Analyze 7 | . . . . . 4 . 3 . . . . . . . . . Garrison Access Hacks 2 | . . . . . . . 1 . . . 1 . . . . . Seal Access 2 | . . . . . . . 1 . . . 1 . . . . . Unauthorized Hacks 63 | . 4 1 1 1 10 . 7 7 9 . 18 . . . . 5 Terminals 37 | . 1 1 1 . 8 . 4 5 6 . 9 . . . . 2 Track 3 | . . . . . . . . . 1 . 2 . . . . . Assimilate 11 | . . . . . 4 . 2 1 2 . 2 . . . . . Botnet 16 | . . . 1 . 3 . 2 3 2 . 4 . . . . 1 Operators 7 | . 1 1 . . 1 . . 1 1 . 1 . . . . 1 Fabricators 16 | . . . . . 2 . 3 2 3 . 6 . . . . . Prioritize 4 | . . . . . . . 1 . 1 . 2 . . . . . Recompile 12 | . . . . . 2 . 2 2 2 . 4 . . . . . Repair Stations . | . . . . . . . . . . . . . . . . . Recycling Units 3 | . 3 . . . . . . . . . . . . . . . Reject 1 | . 1 . . . . . . . . . . . . . . . Mask 2 | . 2 . . . . . . . . . . . . . . . Scanalyzers . | . . . . . . . . . . . . . . . . . Garrison Access 7 | . . . . 1 . . . . . . 3 . . . . 3 Broadcast 2 | . . . . . . . . . . . 1 . . . . 1 Redirect 2 | . . . . . . . . . . . 1 . . . . 1 Watchers 3 | . . . . 1 . . . . . . 1 . . . . 1 Data Cores Recovered 1 | . . . . 1 . . . . . . . . . . . . Used . | . . . . . . . . . . . . . . . . . Hacking Detections 69 | . 4 6 5 4 9 . 12 10 6 . 10 . . . . 3 Full Trace Events 14 | . . 2 2 . 1 . 3 3 1 . 1 . . . . 1 Feedback Events 2 | . . . . . 1 . . 1 . . . . . . . . Corruption 2 | . . . . . 1 . . 1 . . . . . . . . Feedback Blocked . | . . . . . . . . . . . . . . . . . Robot Schematics Acquired . | . . . . . . . . . . . . . . . . . Robots Built . | . . . . . . . . . . . . . . . . . Authchips . | . . . . . . . . . . . . . . . . . Time . | . . . . . . . . . . . . . . . . . Total Robot Build Rating . | . . . . . . . . . . . . . . . . . Part Schematics Acquired 23 | . . . . . 6 . 6 2 5 . . . . 4 . . Parts Built 12 | . . . . . . . 5 1 2 . 4 . . . . . Authchips 11 | . . . . . . . 4 1 2 . 4 . . . . . Time 615 | . . . . . . . 190 53 182 . 190 . . . . . Total Part Build Rating 66 | . . . . . . . 29 6 11 . 20 . . . . . Parts Repaired 12 | . . 2 1 1 . . 1 . 1 . 4 . . . . 2 Time 528 | . . 58 32 26 . . 28 . 44 . 260 . . . . 80 Parts Recycled . | . . . . . . . . . . . . . . . . . Recycled Matter . | . . . . . . . . . . . . . . . . . Retrieved Matter . | . . . . . . . . . . . . . . . . . Retrieved Components . | . . . . . . . . . . . . . . . . . Parts Scanalyzed 7 | . . . . . 4 . 3 . . . . . . . . . Part Schematics Acquired 7 | . . . . . 4 . 3 . . . . . . . . . Parts Damaged 2 | . . . . . 2 . . . . . . . . . . . Bothacking | -11 -10 -9 -9 -8 -7 -7 -7 -6 -5 -5 -5 -5 -5 -5 -4 -4 ------------ Run | Jun Mat Mat Sto Mat Fac Was Fac Fac Fac Was Fac Upp Upp Zhi Pro Fac Used RIF Installer . | . . . . . . . . . . . . . . . . . Robots Hacked 3 | . . . . . 2 . . . 1 . . . . . . . Non-combat 3 | . . . . . 2 . . . 1 . . . . . . . Combat . | . . . . . . . . . . . . . . . . . Robot Hacks Applied 3 | . . . . . 2 . . . 1 . . . . . . . find_chute 3 | . . . . . 2 . . . 1 . . . . . . . Relay Couplers Released 5 | . . . 2 . . . 3 . . . . . . . . . Machine Destruction 5 | . . . 2 . . . 3 . . . . . . . . . Fabnet Peak Effective % . | . . . . . . . . . . . . . . . . . Robots Rewired . | . . . . . . . . . . . . . . . . . Allies Hacked 1 | . . . . . . . . 1 . . . . . . . . Hacks Repelled . | . . . . . . . . . . . . . . . . . Allies | -11 -10 -9 -9 -8 -7 -7 -7 -6 -5 -5 -5 -5 -5 -5 -4 -4 -------- Run | Jun Mat Mat Sto Mat Fac Was Fac Fac Fac Was Fac Upp Upp Zhi Pro Fac Total Allies 19 | . . . 10 . 3 . 2 1 1 . 2 . . . . . Largest Group 10 | . . . 10 10 3 3 1 1 1 . 2 . . . . . Highest-Rated Group 88 | . . . 88 88 46 46 26 26 26 . 36 . . . . . Highest-Rated Ally 26 | . . . 16 16 26 26 26 26 26 . 26 . . . . . Total Orders . | . . . . . . . . . . . . . . . . . Ally Attacks 64 | . . . . 64 . . . . . . . . . . . . Total Damage 597 | . . . . 597 . . . . . . . . . . . . Kills 8 | . . . . 8 . . . . . . . . . . . . Allies Corrupted . | . . . . . . . . . . . . . . . . . Allies Melted . | . . . . . . . . . . . . . . . . . Intel | -11 -10 -9 -9 -8 -7 -7 -7 -6 -5 -5 -5 -5 -5 -5 -4 -4 ------- Run | Jun Mat Mat Sto Mat Fac Was Fac Fac Fac Was Fac Upp Upp Zhi Pro Fac Robot Analysis Total 8 | . 2 1 . . 1 . . . . . . . . 4 . . Derelict Logs Recovered 1 | . . . . . . . . . . . . . . . 1 . Drone Launches . | . . . . . . . . . . . . . . . . . Drone Recoveries . | . . . . . . . . . . . . . . . . . Exploration | -11 -10 -9 -9 -8 -7 -7 -7 -6 -5 -5 -5 -5 -5 -5 -4 -4 ------------- Run | Jun Mat Mat Sto Mat Fac Was Fac Fac Fac Was Fac Upp Upp Zhi Pro Fac Turns Passed 11230 | . 1422 1950 1078 1370 709 92 835 688 757 19 1187 85 285 74 412 267 Spaces Moved 11151 | 1 653 740 374 665 1099 237 1509 991 1175 73 1751 275 451 157 589 411 Core . | . . . . . . . . . . . . . . . . . Treads 1790 | . . 740 374 665 11 . . . . . . . . . . . Legs 654 | 1 653 . . . . . . . . . . . . . . . Wheels . | . . . . . . . . . . . . . . . . . Hover . | . . . . . . . . . . . . . . . . . Flight 8707 | . . . . . 1088 237 1509 991 1175 73 1751 275 451 157 589 411 Fastest Speed 26 | 120 120 160 160 156 28 29 29 28 26 26 26 31 31 31 31 31 Average Speed 60 | 120 167 191 197 156 30 29 29 28 26 26 26 31 31 31 31 31 Slowest Speed 240 | 120 190 240 240 160 156 29 29 29 28 26 31 31 31 31 31 31 Overloaded Moves . | . . . . . . . . . . . . . . . . . Propulsion Burnouts . | . . . . . . . . . . . . . . . . . Robots Hopped 40 | . . . . . . . 3 10 19 . 8 . . . . . Cave-ins Triggered . | . . . . . . . . . . . . . . . . . Exploration Rate (%) 50 | 2 81 58 62 51 37 81 45 29 31 79 43 55 68 60 61 17 Regions Visited 16 Branch Regions 5 Pre-discovered Areas 3 | . . . . . . . . . . . . . . 3 . . Known Exits Taken 8 | . . 1 . . . . 1 1 . . 1 1 1 1 1 . Unknown Exits Taken 4 | 1 1 . 1 1 . . . . . . . . . . . . Scrap Searched 4 | . . . . . . . . . . . . 3 1 . . . Spaces Dug 157 | . . . 16 . 8 . 31 35 22 . 22 . 9 . 5 9 Terrain Destroyed 329 | . . 20 142 14 8 . 41 37 22 . 22 . 9 . 5 9 Melee 142 | . . . 1 . 8 . 31 35 22 . 22 . 9 . 5 9 Projectile . | . . . . . . . . . . . . . . . . . AOE 187 | . . 20 141 14 . . 10 2 . . . . . . . . Terrain Rammed . | . . . . . . . . . . . . . . . . . Walls Destroyed . | . . . . . . . . . . . . . . . . . Machines Disabled . | . . . . . . . . . . . . . . . . . Actions | -11 -10 -9 -9 -8 -7 -7 -7 -6 -5 -5 -5 -5 -5 -5 -4 -4 --------- Run | Jun Mat Mat Sto Mat Fac Was Fac Fac Fac Was Fac Upp Upp Zhi Pro Fac Total 14656 | . 895 1100 585 832 1471 260 1821 1329 1542 72 2403 274 579 173 793 527 Wait 2543 | . 127 166 63 41 301 17 227 293 332 . 583 . 119 . 188 86 Move 11061 | . 652 739 373 664 1099 236 1502 971 1140 72 1734 274 450 156 588 411 Hop 36 | . . . . . . . 3 9 16 . 8 . . . . . Pick Up 96 | . 22 23 8 10 7 2 7 4 2 . 7 . . 1 . 3 Fast Attach 38 | . 2 3 1 5 1 1 3 1 3 . 9 . . 5 1 3 Attach 42 | . 2 5 2 1 14 . 5 3 2 . 5 . . . . 3 Detach 3 | . . . . . 2 . . . . . 1 . . . . . Swap 116 | . 16 28 26 7 3 1 14 5 4 . 8 . . 1 . 3 Drop 136 | . 19 27 22 16 22 3 7 3 1 . 8 . . 5 . 3 Fire 309 | . 45 98 77 84 . . 2 3 . . . . . . . . Melee 240 | . . 5 7 . 13 . 51 37 42 . 40 . 10 5 15 15 Ram . | . . . . . . . . . . . . . . . . . Kick 10 | . 10 . . . . . . . . . . . . . . . Crush 16 | . . 6 6 4 . . . . . . . . . . . . Escape Stasis 8 | . . . . . 8 . . . . . . . . . . . Rewire . | . . . . . . . . . . . . . . . . . Trap 2 | . . . . . 1 . . . . . . . . . 1 . Miscellaneous . | . . . . . . . . . . . . . . . . . Route ------- -11/Junkyard -10/Materials (discovered 3 exits: *Mat / [*Min x2]) -9/Materials (discovered 3 exits: *Min x2 / *Sto) -9/Storage -8/Materials (discovered 2 exits: *Fac x2) -7/Factory (discovered 4 exits: *Fac x2 / *Low x2) -7/Waste -7/Factory (discovered 3 exits: *Fac / Low x2) -6/Factory (discovered 2 exits: *Fac x2) -5/Factory (discovered 5 exits: *Fac / Upp x2 / Ext x2) -5/Waste -5/Factory (discovered 4 exits: *Upp x2 / Ext x2) -5/Upper Caves -5/Upper Caves -5/Zhirov -4/Proximity Caves -4/Factory History --------- Turn | Location | Event 1 | -11/Junkyard | Discovered new exit (range 0) 1 | -11/Junkyard | Entered Materials 4 | -10/Materials | Discovered new exit (range 14) 291 | -10/Materials | Discovered new exit (range 7) 314 | -10/Materials | Build established: Mutant 1358 | -10/Materials | Discovered new exit (range 16) 1423 | -10/Materials | Entered another Materials area 1423 | -9/Materials | Evolved 2 slots: Propulsion x1, Utility x1 1426 | -9/Materials | Discovered new exit (range 8) 1800 | -9/Materials | Discovered new exit (range 11) 1847 | -9/Materials | Identified exit to Mines 1847 | -9/Materials | Identified exit to Storage 1952 | -9/Materials | Repaired Shield Generator 1979 | -9/Materials | Repaired Lgt. Treads 3373 | -9/Materials | Entered Storage 3502 | -9/Storage | Garrison activated, responded to threat 4112 | -9/Storage | Repaired Med. Armor Plating 4173 | -9/Storage | First assault squad dispatched 4245 | -9/Storage | Destroyed 9 combat bots 4386 | -9/Storage | Assisted by bots powering up and referring to "LRC-V3" 4422 | -9/Storage | Discovered new exit (range 7) 4451 | -9/Storage | Entered Materials 4451 | -8/Materials | Accompanied by 10 allies 4451 | -8/Materials | Evolved 2 slots: Propulsion x1, Utility x1 4688 | -8/Materials | Build established: Commander-Mutant 4719 | -8/Materials | Garrison activated, responded to threat 4730 | -8/Materials | Discovered new exit (range 15) 5012 | -8/Materials | Repaired Lgt. Armor Plating 5071 | -8/Materials | Build established: Mutant 5615 | -8/Materials | Discovered new exit (range 13) 5821 | -8/Materials | Entered Factory 5821 | -7/Factory | Evolved 2 slots: Utility x2 5879 | -7/Factory | Discovered new exit (range 4) 5880 | -7/Factory | Identified exit to Factory 6158 | -7/Factory | Build established: Scavenger-Sprinter 6195 | -7/Factory | Central database locked down 6218 | -7/Factory | Discovered exit to Factory (range 15) 6242 | -7/Factory | Identified exit to Lower Caves 6530 | -7/Factory | Manually triggered Chute Trap 6530 | -7/Factory | Sucked down chute 6530 | -7/Factory | Entered Waste 6546 | -7/Waste | Spotted C-40 Crusher 6546 | -7/Waste | Spotted C-40 Crusher 6547 | -7/Waste | Spotted C-40 Crusher 6570 | -7/Waste | 3 allies followed down the chute 6571 | -7/Waste | Spotted C-40 Crusher 6571 | -7/Waste | Spotted C-40 Crusher 6597 | -7/Waste | Spotted C-40 Crusher 6620 | -7/Waste | Discovered new exit (range 11) 6622 | -7/Waste | Identified exit to Factory 6622 | -7/Waste | Entered Factory 6680 | -7/Factory | Fabricated Adv. Hacking Suite (x1) 6710 | -7/Factory | Fabricated Adv. Hacking Suite (x1) 6744 | -7/Factory | Build established: Hacker-Sprinter 6776 | -7/Factory | Fabricated Adv. Hacking Suite? 7242 | -7/Factory | Fabricated Adv. System Shield? 7300 | -7/Factory | Fabricated Exp. Propulsion Shielding? 7322 | -7/Factory | Repaired Broken Lrn. Sensor Array 7448 | -7/Factory | Discovered exit to Factory (range 6) 7457 | -7/Factory | Entered another Factory area 7457 | -6/Factory | Evolved 2 slots: Utility x2 7889 | -6/Factory | Discovered new exit (range 15) 7893 | -6/Factory | Identified exit to Factory 7983 | -6/Factory | Fabricated Adv. Hacking Suite? 8038 | -6/Factory | Discovered exit to Factory (range 6) 8145 | -6/Factory | Entered another Factory area 8145 | -5/Factory | Evolved 2 slots: Propulsion x1, Utility x1 8234 | -5/Factory | Fabricated Exp. Utility Shielding (x1) 8345 | -5/Factory | Repaired Imp. Medium Armor Plating 8530 | -5/Factory | Fabricated Adv. Hacking Suite? 8737 | -5/Factory | Discovered new exit (range 4) 8820 | -5/Factory | Build established: Wizard-Sprinter 8830 | -5/Factory | Identified exit to Factory 8896 | -5/Factory | Identified exit to Upper Caves 8896 | -5/Factory | Identified exit to Extension 8902 | -5/Factory | Manually triggered Chute Trap 8902 | -5/Factory | Sucked down chute 8902 | -5/Factory | Entered Waste 8910 | -5/Waste | Spotted C-40 Crusher 8910 | -5/Waste | Spotted C-40 Crusher 8912 | -5/Waste | Spotted C-40 Crusher 8914 | -5/Waste | Spotted C-40 Crusher 8917 | -5/Waste | EMP discharged 8917 | -5/Waste | System corruption reached 10% 8917 | -5/Waste | Discovered new exit (range 16) 8921 | -5/Waste | Identified exit to Factory 8921 | -5/Waste | Entered Factory 9112 | -5/Factory | Repaired Adv. System Restoration Module 9193 | -5/Factory | Repaired Exp. Propulsion Shielding 9284 | -5/Factory | Repaired Exp. Utility Shielding 9330 | -5/Factory | Repaired Chainsword 9595 | -5/Factory | Fabricated Biomechanical Wings (x1) 9643 | -5/Factory | Fabricated Biomechanical Wings? 9750 | -5/Factory | Fabricated Biomechanical Wings? 10065 | -5/Factory | Fabricated Biomechanical Wings (x1) 10108 | -5/Factory | Entered Upper Caves 10149 | -5/Upper Caves | Encountered a Warlord checkpoint 10191 | -5/Upper Caves | Discovered new exit (range 5) 10193 | -5/Upper Caves | Identified exit to Upper Caves 10193 | -5/Upper Caves | Entered another Upper Caves area 10476 | -5/Upper Caves | Discovered new exit (range 8) 10478 | -5/Upper Caves | Identified exit to Zhirov 10478 | -5/Upper Caves | Entered Zhirov 10478 | -5/Zhirov | Discovered new exit (range 3) 10484 | -5/Zhirov | Met Zhirov 10490 | -5/Zhirov | Learned location of Quarantine (-2) 10490 | -5/Zhirov | Learned location of Testing (-3) 10490 | -5/Zhirov | Learned location of Command (-1) 10492 | -5/Zhirov | Zhirov requested help retrieving the SGEMP Prototype 10498 | -5/Zhirov | Found Alien Artifact 10498 | -5/Zhirov | Identified Integrated Reactor 10498 | -5/Zhirov | Installed Integrated Reactor, increased core energy generation (+10) 10538 | -5/Zhirov | Found Alien Artifact 10551 | -5/Zhirov | Identified exit to Proximity Caves 10552 | -5/Zhirov | Entered Proximity Caves 10554 | -4/Proximity Caves | Spotter reported a threat 10800 | -4/Proximity Caves | Learned Research terminal intel 10962 | -4/Proximity Caves | Discovered exit to Factory (range 10) 10964 | -4/Proximity Caves | Entered Factory 10964 | -4/Factory | Evolved 2 slots: Utility x2 11089 | -4/Factory | Repaired Exp. Utility Shielding 11202 | -4/Factory | Repaired Biomechanical Wings 11226 | -4/Factory | Spotted B-86 Titan 11231 | -4/Factory | Self-destructed Last Messages --------------- >>Repair Repairing Biomechanical Wings... ETC: 40 11176_ U-05 Engineer builds a Wall. 11202_ Repair station completes Biomechanical Wings repairs. 11202_ Acquired Biomechanical Wings. 11212_ Slug penetrates Wall. 11214_ >> BROADCAST: Garrison Access F003 dispatching Extermination squad: 2x P-70 Sage. 11214_ ALERT: Rogue bot located, Programmers report to Factory Zone 9T. 11214_ Destroyed Antigrav System. 11217_ Connecting with Terminal... >>Recall(Extermination) Establishing remote squad link... Recalled extermination squad SF50QNMUDS. 11217_ >> BROADCAST: Garrison Access F002 dispatching Investigation squad: 2x H-77 Assassin. 11217_ ALERT: Suspicious activity at Terminal F002. Dispatching Investigation squad. 11222_ Construction Platform disabled. Map ----- +----------------------------------------------------+ | ??????????????????????????????????????????????? | | ??????????????????????????????????????????????? | | ??????????????????????????????????????????????? | | ??????????????????????????????????????????????? | | ??????????????????????????????????????????????? | | ??????????????????????????????????????????????? | | ??????????????????????????????????????????????? | | ??????????????????????????????????????????????? | | ??????????????????????????????????????????????? | | ??????????????????????????????????????????????? | | ??????????????????????????????????????????????? | | ??????????????????????????????????????????????? | | ??????????????????????????????????????????????? | | ??????????????????????????????????????????????? | | ??????????????????????????????????????????????? | | ??????????????????????????????????????????????? | | ??????????????????????????????????????????????? | | ??????????????????????????????????????????????? | | ????????????????????????#+##????? ????????????? | | ????????????????????????# ??? ??????????? | | ????????????????????????# ? ! ??????????? | | ????????????????????????# """" ?????????? | | ????????????????????????# ""F" ???????????? | | ?????????????????????#### ?#?????????? | | ???????????###########;## ? #?????????? | | ???????????# @ # """ !#?????????? | | ???????????# # """ #?????????? | | ???????????# """" """" #[! """ #?????????? | | ?????????????"""" """" #!! #?????????? | | ??????????????""" """" # #?????????? | | ???????????????"" """" + s #?????????? | | ????????????????? """" t# #?????????# | | ????????????????? """" # ####BB#??????? | | ??????????????????"""" # #???BB???????? | | ?????????????????? # ########?????? | | ????????????????? # #?????? | | ???????????????? # #?????? | | ????????????????######### #???????" | | ????????????????????????# #???????"Y | | ????????????????????????# #???????"" | | ????????????????????????######## #??????? | | ???????????????????????#######?# ########## | | ???????????????????????"""" ?# | | ???????????????????????"""" # | | ???????????????????????"""" # """"""" | | ???????????????????????"""" + """""" | | ??????????????????? # """"""" | | ????????????????# # """"""" | | ??????????????################## | | ??????????????# # | +----------------------------------------------------+ Best States ------------- Heat Dissipation 53 Energy Generation 28 Energy Capacity 265 Matter Stores 300 Matter Capacity 300 Sight Range 16 Robot Scan Range 18 Terrain Scan Density 10 Jamming Range 14 Armor Coverage 225 Propulsion Shielding 90 Utility Shielding 90 Evasion (%) 64 Targeting Accuracy 6 Recoil Reduction 4 Offensive Hacking 56 Defensive Hacking 14 Authchip Count 2 Item Schematics ----------------- Imp. VTOL Module | -7/Factory | Scanalyzed Lgt. Nuclear Core | -7/Factory | Scanalyzed Powered Armor | -7/Factory | Hacked Machine Analyzer | -7/Factory | Scanalyzed Imp. Utility Shielding | -7/Factory | Scanalyzed Imp. Plasma Cutter | -7/Factory | Hacked Adv. Hacking Suite | -7/Factory | Scanalyzed Adv. System Shield | -7/Factory | Hacked Exp. Propulsion Shielding | -7/Factory | Hacked Lrn. Sensor Array | -7/Factory | Scanalyzed Grenade Launcher | -7/Factory | Scanalyzed Lyr. Light Armor Plating | -7/Factory | Hacked Smartbomb Launcher | -6/Factory | Hacked Exp. Utility Shielding | -6/Factory | Hacked Biomechanical Wings | -5/Factory | Hacked Adv. Transmission Jammer | -5/Factory | Hacked Impulse Thruster Array | -5/Factory | Hacked Mni. Smartbomb Launcher | -5/Factory | Hacked Exp. Hacking Suite | -5/Factory | Hacked Assault Drone Bay | -5/Zhirov | Free Exp. Heat Sink | -5/Zhirov | Free Exp. Optical Array | -5/Zhirov | Free Imp. Arc Thrower | -5/Zhirov | Free Robot Schematics ------------------ None Fabricated ------------ Adv. Hacking Suite | x1 | -7/Factory | Authchip Adv. Hacking Suite | x1 | -7/Factory | Authchip Adv. Hacking Suite | x1 | -7/Factory | Authchip Adv. System Shield | x1 | -7/Factory | Authchip Exp. Propulsion Shielding | x1 | -7/Factory Adv. Hacking Suite | x1 | -6/Factory | Authchip Exp. Utility Shielding | x1 | -5/Factory | Authchip Adv. Hacking Suite | x1 | -5/Factory | Authchip Biomechanical Wings | x1 | -5/Factory | Authchip Biomechanical Wings | x1 | -5/Factory | Authchip Biomechanical Wings | x1 | -5/Factory | Authchip Biomechanical Wings | x1 | -5/Factory | Authchip Alien Tech Used ----------------- Integrated Reactor Achievements -------------- None Challenges ------------ None Game ------ Seed SupersonicActiveJammer Manual? 0 Play Time 01:35:09 Cumulative 838.0 hours Start 2023.03.13 @ 20:42:58 End 2023.03.13 @ 22:21:42 Sessions 1 Manual Loads 0 Difficulty Rogue Special Mode None Game No. 1259 Rogue 1259 Adventurer 0 Explorer 0 Win Type - Total 80 Types 47/1/13/14/4/0/0/1/0 Lore% 92 Gallery% 92 Achievement% 85 Wizard Run 0 Options --------- ASCII 1 Keyboard 0 Movement Numpad Keybinds 0 Fullscreen 0 Font 14/SmallcapsGlow Map View 76x50 Tactical HUD 1 Map Filters NONE Filters NONE Steam 1 RUN: de2f544f-e6b6-4a05-b156-cd54c1c49fb8